[Event "*** Titled Tuesday Blitz"]
[Site "Chess.com"]
[Date "2020.04.07"]
[Round "1"]
[White "Bulldog167"]
[Black "Rakesh"]
[Result "1/2-1/2"]
[WhiteElo "2646"]
[BlackElo "2334"]
[TimeControl "180+1"]
[EndTime "13:10:20 PDT"]
[Termination "Game drawn by stalemate"]

1. d4 {[%clk 0:03:00.9]} 1... Nf6 {[%clk 0:02:58.8]} 2. c4 {[%clk 0:03:01]} 2...
e5 {[%clk 0:02:56]} 3. dxe5 {[%clk 0:03:00.8]} 3... Ng4 {[%clk 0:02:54.8]} 4. e3
{[%clk 0:03:00.7]} 4... Nxe5 {[%clk 0:02:53.7]} 5. Nh3 {[%clk 0:03:00.9]} 5...
Nbc6 {[%clk 0:02:51.2]} 6. Nf4 {[%clk 0:03:00.1]} 6... Bc5 {[%clk 0:02:49.1]} 7.
Nc3 {[%clk 0:02:59.2]} 7... d6 {[%clk 0:02:49.2]} 8. Be2 {[%clk 0:02:58.7]} 8...
O-O {[%clk 0:02:49.8]} 9. O-O {[%clk 0:02:58.7]} 9... Bf5 {[%clk 0:02:49.4]} 10.
a3 {[%clk 0:02:50.8]} 10... a5 {[%clk 0:02:48.4]} 11. b3 {[%clk 0:02:50.7]}
11... Qd7 {[%clk 0:02:46.7]} 12. Bb2 {[%clk 0:02:50.7]} 12... Rae8 {[%clk
0:02:45.5]} 13. Ncd5 {[%clk 0:02:44.8]} 13... Kh8 {[%clk 0:02:36.3]} 14. Qd2
{[%clk 0:02:36.9]} 14... Bg4 {[%clk 0:02:29.7]} 15. Kh1 {[%clk 0:02:14]} 15...
Bxe2 {[%clk 0:02:25]} 16. Qxe2 {[%clk 0:02:14.9]} 16... f5 {[%clk 0:02:24.4]}
17. Bc3 {[%clk 0:01:53]} 17... Ng4 {[%clk 0:01:46.5]} 18. Nh5 {[%clk 0:01:35.3]}
18... Bd4 {[%clk 0:01:43.6]} 19. Bxd4 {[%clk 0:01:09.4]} 19... Nxd4 {[%clk
0:01:44.5]} 20. Qb2 {[%clk 0:01:09.7]} 20... Ne6 {[%clk 0:01:32.6]} 21. h3
{[%clk 0:01:04.7]} 21... Ne5 {[%clk 0:01:26]} 22. Rad1 {[%clk 0:01:03]} 22...
Qf7 {[%clk 0:01:22.8]} 23. Nhf4 {[%clk 0:01:02.1]} 23... Nxf4 {[%clk 0:01:21.8]}
24. Nxf4 {[%clk 0:01:02.4]} 24... a4 {[%clk 0:01:21.2]} 25. bxa4 {[%clk
0:01:00.6]} 25... b6 {[%clk 0:01:21.2]} 26. Qc3 {[%clk 0:00:53.6]} 26... Ra8
{[%clk 0:01:14.8]} 27. Nd3 {[%clk 0:00:41.8]} 27... Qxc4 {[%clk 0:01:13.2]} 28.
Qxc4 {[%clk 0:00:41.2]} 28... Nxc4 {[%clk 0:01:14.1]} 29. Rc1 {[%clk 0:00:41.7]}
29... Rxa4 {[%clk 0:01:12.9]} 30. Nb4 {[%clk 0:00:41.3]} 30... b5 {[%clk
0:01:12.3]} 31. Nd5 {[%clk 0:00:41.4]} 31... c6 {[%clk 0:01:10]} 32. Nb4 {[%clk
0:00:41.3]} 32... c5 {[%clk 0:01:08.3]} 33. Nd5 {[%clk 0:00:38.6]} 33... Rxa3
{[%clk 0:01:07.5]} 34. Nc7 {[%clk 0:00:38.2]} 34... Rb3 {[%clk 0:00:56.3]} 35.
Nxb5 {[%clk 0:00:38.5]} 35... Nxe3 {[%clk 0:00:54.1]} 36. fxe3 {[%clk
0:00:35.1]} 36... Rxb5 {[%clk 0:00:54.4]} 37. e4 {[%clk 0:00:35.7]} 37... f4
{[%clk 0:00:53.1]} 38. Rfe1 {[%clk 0:00:31.1]} 38... Re8 {[%clk 0:00:51.4]} 39.
Rcd1 {[%clk 0:00:30.6]} 39... Rb6 {[%clk 0:00:49]} 40. e5 {[%clk 0:00:31]} 40...
dxe5 {[%clk 0:00:47.7]} 41. Rxe5 {[%clk 0:00:31.9]} 41... Rf8 {[%clk 0:00:43.4]}
42. Rxc5 {[%clk 0:00:31.1]} 42... h6 {[%clk 0:00:42.8]} 43. Rc3 {[%clk
0:00:28.6]} 43... Rg6 {[%clk 0:00:41.1]} 44. Rf3 {[%clk 0:00:28.3]} 44... Rg3
{[%clk 0:00:40.4]} 45. Rdf1 {[%clk 0:00:25.8]} 45... Rxf3 {[%clk 0:00:39.8]} 46.
Rxf3 {[%clk 0:00:26.7]} 46... Kh7 {[%clk 0:00:39.1]} 47. Rb3 {[%clk 0:00:26.9]}
47... Kg6 {[%clk 0:00:38.9]} 48. Kg1 {[%clk 0:00:27.4]} 48... Kf5 {[%clk
0:00:38.6]} 49. Kf2 {[%clk 0:00:27.5]} 49... Re8 {[%clk 0:00:38.7]} 50. Kf3
{[%clk 0:00:26.7]} 50... Rd8 {[%clk 0:00:36.4]} 51. Rb5+ {[%clk 0:00:25.9]}
51... Ke6 {[%clk 0:00:36.4]} 52. Kxf4 {[%clk 0:00:26.1]} 52... Rd2 {[%clk
0:00:36.9]} 53. Kf3 {[%clk 0:00:25.9]} 53... Rd3+ {[%clk 0:00:36.9]} 54. Ke4
{[%clk 0:00:26.2]} 54... Rd2 {[%clk 0:00:37.2]} 55. Rb6+ {[%clk 0:00:26.3]}
55... Kf7 {[%clk 0:00:36.8]} 56. Kf3 {[%clk 0:00:25.8]} 56... Rd3+ {[%clk
0:00:37.3]} 57. Ke2 {[%clk 0:00:24.8]} 57... Rd4 {[%clk 0:00:36.4]} 58. Rb3
{[%clk 0:00:23]} 58... Rd5 {[%clk 0:00:36.3]} 59. Kf3 {[%clk 0:00:22.5]} 59...
Kg6 {[%clk 0:00:36.7]} 60. g4 {[%clk 0:00:22.7]} 60... Kg5 {[%clk 0:00:35.9]}
61. Kg3 {[%clk 0:00:22.1]} 61... Rc5 {[%clk 0:00:36.3]} 62. h4+ {[%clk
0:00:18.7]} 62... Kg6 {[%clk 0:00:36.2]} 63. h5+ {[%clk 0:00:19.3]} 63... Kg5
{[%clk 0:00:36]} 64. Rf3 {[%clk 0:00:19.7]} 64... Rd5 {[%clk 0:00:35.8]} 65. Kh3
{[%clk 0:00:18.4]} 65... Rb5 {[%clk 0:00:35.4]} 66. Kg3 {[%clk 0:00:18.6]} 66...
g6 {[%clk 0:00:35.6]} 67. hxg6 {[%clk 0:00:18.5]} 67... Kxg6 {[%clk 0:00:36.5]}
68. Kh4 {[%clk 0:00:19]} 68... Rb4 {[%clk 0:00:36.9]} 69. Rc3 {[%clk 0:00:17.7]}
69... Rb6 {[%clk 0:00:36.2]} 70. Ra3 {[%clk 0:00:17.5]} 70... Rc6 {[%clk
0:00:36.4]} 71. Ra8 {[%clk 0:00:17.7]} 71... Rb6 {[%clk 0:00:36.7]} 72. Rg8+
{[%clk 0:00:17.7]} 72... Kf7 {[%clk 0:00:36.7]} 73. Rh8 {[%clk 0:00:17.3]} 73...
Ra6 {[%clk 0:00:32.5]} 74. Rb8 {[%clk 0:00:16.9]} 74... Ra1 {[%clk 0:00:32]} 75.
Rb6 {[%clk 0:00:14]} 75... Kg7 {[%clk 0:00:31.9]} 76. Kg3 {[%clk 0:00:12.1]}
76... Ra3+ {[%clk 0:00:30.9]} 77. Kf4 {[%clk 0:00:12.4]} 77... Ra4+ {[%clk
0:00:31.8]} 78. Kf5 {[%clk 0:00:13]} 78... Ra5+ {[%clk 0:00:32.6]} 79. Kf4
{[%clk 0:00:13.4]} 79... Ra4+ {[%clk 0:00:33.5]} 80. Kg3 {[%clk 0:00:14]} 80...
Ra5 {[%clk 0:00:34.4]} 81. Kh4 {[%clk 0:00:13.9]} 81... Ra4 {[%clk 0:00:34.8]}
82. Rb5 {[%clk 0:00:12.9]} 82... Ra1 {[%clk 0:00:34.5]} 83. Rb7+ {[%clk
0:00:13.1]} 83... Kg6 {[%clk 0:00:33.8]} 84. Rb6+ {[%clk 0:00:13.6]} 84... Kg7
{[%clk 0:00:34]} 85. Rb7+ {[%clk 0:00:14]} 85... Kg6 {[%clk 0:00:33.9]} 86. Rb6+
{[%clk 0:00:14.6]} 86... Kf7 {[%clk 0:00:33.9]} 87. Rxh6 {[%clk 0:00:13.2]}
87... Kg7 {[%clk 0:00:32.6]} 88. Rb6 {[%clk 0:00:12.6]} 88... Ra5 {[%clk
0:00:32.3]} 89. g5 {[%clk 0:00:11.5]} 89... Ra1 {[%clk 0:00:31.2]} 90. Rb4
{[%clk 0:00:10.4]} 90... Rh1+ {[%clk 0:00:31.2]} 91. Kg4 {[%clk 0:00:09.8]}
91... Rg1+ {[%clk 0:00:32.1]} 92. Kf5 {[%clk 0:00:10.2]} 92... Rf1+ {[%clk
0:00:32.5]} 93. Rf4 {[%clk 0:00:10.6]} 93... Rxf4+ {[%clk 0:00:32.5]} 94. Kxf4
{[%clk 0:00:11.5]} 94... Kg6 {[%clk 0:00:33.4]} 95. Kg4 {[%clk 0:00:12.4]} 95...
Kg7 {[%clk 0:00:33.8]} 96. Kf5 {[%clk 0:00:13.3]} 96... Kf7 {[%clk 0:00:34]} 97.
g6+ {[%clk 0:00:14.2]} 97... Kg7 {[%clk 0:00:34.2]} 98. Kg5 {[%clk 0:00:15.1]}
98... Kg8 {[%clk 0:00:34.1]} 99. Kf6 {[%clk 0:00:16]} 99... Kf8 {[%clk
0:00:34.2]} 100. Kf5 {[%clk 0:00:16.9]} 100... Kg7 {[%clk 0:00:33.6]} 101. Kg5
{[%clk 0:00:17.8]} 101... Kg8 {[%clk 0:00:33.5]} 102. Kh6 {[%clk 0:00:18.7]}
102... Kh8 {[%clk 0:00:33.6]} 103. g7+ {[%clk 0:00:19.6]} 103... Kg8 {[%clk
0:00:33.6]} 104. Kg6 {[%clk 0:00:20.5]} 1/2-1/2

[Event "*** Titled Tuesday Blitz"]
[Site "Chess.com"]
[Date "2020.04.07"]
[Round "1"]
[White "TastyFrenchFries"]
[Black "Gabrielian_Artur"]
[Result "1/2-1/2"]
[WhiteElo "2406"]
[BlackElo "2741"]
[TimeControl "180+1"]
[EndTime "13:11:13 PDT"]
[Termination "Game drawn by repetition"]

1. e4 {[%clk 0:02:56.6]} 1... c5 {[%clk 0:02:57]} 2. Nf3 {[%clk 0:02:56.4]} 2...
d6 {[%clk 0:02:57.2]} 3. c3 {[%clk 0:02:55.5]} 3... Nf6 {[%clk 0:02:56.7]} 4. d3
{[%clk 0:02:55.5]} 4... g6 {[%clk 0:02:56.4]} 5. Be2 {[%clk 0:02:55.9]} 5... Bg7
{[%clk 0:02:56.7]} 6. Nbd2 {[%clk 0:02:55.8]} 6... O-O {[%clk 0:02:57]} 7. O-O
{[%clk 0:02:56.2]} 7... e5 {[%clk 0:02:57.3]} 8. h3 {[%clk 0:02:56.4]} 8... Nc6
{[%clk 0:02:57.2]} 9. a4 {[%clk 0:02:55.9]} 9... b6 {[%clk 0:02:57.4]} 10. Nc4
{[%clk 0:02:56.1]} 10... Bb7 {[%clk 0:02:57.9]} 11. Nfd2 {[%clk 0:02:53.5]}
11... d5 {[%clk 0:02:56.4]} 12. exd5 {[%clk 0:02:50.8]} 12... Nxd5 {[%clk
0:02:56.6]} 13. Re1 {[%clk 0:02:48.9]} 13... Nf4 {[%clk 0:02:49.3]} 14. Ne4
{[%clk 0:02:46.4]} 14... Nxe2+ {[%clk 0:02:45.8]} 15. Qxe2 {[%clk 0:02:47.3]}
15... Qd7 {[%clk 0:02:43.6]} 16. Bh6 {[%clk 0:02:42.4]} 16... f6 {[%clk
0:02:39.5]} 17. Bxg7 {[%clk 0:02:40.8]} 17... Kxg7 {[%clk 0:02:40.4]} 18. Red1
{[%clk 0:02:28.9]} 18... Ba6 {[%clk 0:02:32.9]} 19. h4 {[%clk 0:02:11.4]} 19...
h5 {[%clk 0:02:08.1]} 20. g3 {[%clk 0:01:53.3]} 20... Qc7 {[%clk 0:02:06]} 21.
Ned6 {[%clk 0:01:32.1]} 21... Rad8 {[%clk 0:02:01.5]} 22. Nb5 {[%clk 0:01:31.9]}
22... Qd7 {[%clk 0:01:49.7]} 23. Ne3 {[%clk 0:01:25.5]} 23... Bb7 {[%clk
0:01:43.8]} 24. Kh2 {[%clk 0:01:23.6]} 24... Rfe8 {[%clk 0:01:35.9]} 25. Na3
{[%clk 0:01:14.9]} 25... Ne7 {[%clk 0:01:31.6]} 26. a5 {[%clk 0:01:12.2]} 26...
Qc6 {[%clk 0:01:22.7]} 27. axb6 {[%clk 0:01:04.8]} 27... axb6 {[%clk 0:01:23.6]}
28. Nac4 {[%clk 0:01:03.2]} 28... Rd7 {[%clk 0:01:14.1]} 29. b4 {[%clk
0:00:54.4]} 29... cxb4 {[%clk 0:01:12.7]} 30. cxb4 {[%clk 0:00:55.3]} 30... Red8
{[%clk 0:01:08.5]} 31. b5 {[%clk 0:00:27.7]} 31... Qe6 {[%clk 0:00:56.3]} 32.
Ra3 {[%clk 0:00:20.6]} 32... Nf5 {[%clk 0:00:52.2]} 33. Nxf5+ {[%clk 0:00:19.6]}
33... Qxf5 {[%clk 0:00:52.6]} 34. Ne3 {[%clk 0:00:17.7]} 34... Qf3 {[%clk
0:00:42.2]} 35. Qxf3 {[%clk 0:00:17.4]} 35... Bxf3 {[%clk 0:00:42.1]} 36. Rd2
{[%clk 0:00:17.9]} 36... Rc7 {[%clk 0:00:36.5]} 37. Nc4 {[%clk 0:00:15.8]} 37...
e4 {[%clk 0:00:32.5]} 38. dxe4 {[%clk 0:00:13.3]} 38... Rxd2 {[%clk 0:00:25.1]}
39. Nxd2 {[%clk 0:00:14.2]} 39... Be2 {[%clk 0:00:25.5]} 40. Re3 {[%clk
0:00:13.9]} 40... Bxb5 {[%clk 0:00:24.6]} 41. Kg2 {[%clk 0:00:14.2]} 41... Rc2
{[%clk 0:00:21.6]} 42. Nf3 {[%clk 0:00:14.4]} 42... Bc4 {[%clk 0:00:17.6]} 43.
Nd4 {[%clk 0:00:14.2]} 43... Rb2 {[%clk 0:00:17.8]} 44. Rc3 {[%clk 0:00:14]}
44... b5 {[%clk 0:00:18.1]} 45. Kf3 {[%clk 0:00:12.7]} 45... Kf7 {[%clk
0:00:17.5]} 46. Ke3 {[%clk 0:00:12.6]} 46... Rb1 {[%clk 0:00:16.2]} 47. f4
{[%clk 0:00:12.8]} 47... Re1+ {[%clk 0:00:14.8]} 48. Kf2 {[%clk 0:00:12.8]}
48... Rd1 {[%clk 0:00:13.8]} 49. Nf3 {[%clk 0:00:12.4]} 49... Rb1 {[%clk
0:00:12.5]} 50. e5 {[%clk 0:00:12.8]} 50... Rb2+ {[%clk 0:00:10.6]} 51. Ke3
{[%clk 0:00:12.7]} 51... Ke6 {[%clk 0:00:10.6]} 52. Nd4+ {[%clk 0:00:12]} 52...
Kf7 {[%clk 0:00:09.5]} 53. Nf3 {[%clk 0:00:11.9]} 53... Ke6 {[%clk 0:00:09.6]}
54. Nd4+ {[%clk 0:00:11.9]} 54... Kf7 {[%clk 0:00:10.1]} 55. Nc6 {[%clk
0:00:11.3]} 55... Re2+ {[%clk 0:00:10.2]} 56. Kf3 {[%clk 0:00:10.1]} 56... Re1
{[%clk 0:00:09.7]} 57. Kf2 {[%clk 0:00:09.9]} 57... Rd1 {[%clk 0:00:08.9]} 58.
exf6 {[%clk 0:00:08.6]} 58... Kxf6 {[%clk 0:00:08.1]} 59. Ne5 {[%clk 0:00:09.2]}
59... Bd5 {[%clk 0:00:07.5]} 60. Rc5 {[%clk 0:00:09.3]} 60... b4 {[%clk
0:00:07]} 61. Ke2 {[%clk 0:00:08.6]} 61... Rd4 {[%clk 0:00:07.1]} 62. Nc6 {[%clk
0:00:07.7]} 62... Re4+ {[%clk 0:00:06.5]} 63. Kd3 {[%clk 0:00:06.9]} 63... Ke6
{[%clk 0:00:05.9]} 64. Nd4+ {[%clk 0:00:06.7]} 64... Kd6 {[%clk 0:00:06.1]} 65.
Rb5 {[%clk 0:00:07.2]} 65... Re1 {[%clk 0:00:05.3]} 66. Rxb4 {[%clk 0:00:07]}
66... Rg1 {[%clk 0:00:05.3]} 67. Ne2 {[%clk 0:00:07.3]} 67... Rg2 {[%clk
0:00:04.5]} 68. Ke3 {[%clk 0:00:07.4]} 68... Kc5 {[%clk 0:00:04.2]} 69. Rb2
{[%clk 0:00:07.3]} 69... Be6 {[%clk 0:00:02.3]} 70. Rc2+ {[%clk 0:00:07.6]}
70... Kd6 {[%clk 0:00:02.5]} 71. Rd2+ {[%clk 0:00:07.8]} 71... Ke7 {[%clk
0:00:03]} 72. Nd4 {[%clk 0:00:08.3]} 72... Rxd2 {[%clk 0:00:02.7]} 73. Kxd2
{[%clk 0:00:09.2]} 73... Bd7 {[%clk 0:00:03.2]} 74. Ke3 {[%clk 0:00:09.6]} 74...
Kf6 {[%clk 0:00:04.1]} 75. Ke4 {[%clk 0:00:09.3]} 75... Bc8 {[%clk 0:00:03.8]}
76. Ke3 {[%clk 0:00:09.7]} 76... Bb7 {[%clk 0:00:04.1]} 77. Kd3 {[%clk
0:00:09.9]} 77... Ba6+ {[%clk 0:00:03.7]} 78. Kc3 {[%clk 0:00:09.9]} 78... Bb7
{[%clk 0:00:04.6]} 79. Kb4 {[%clk 0:00:10.3]} 79... Bd5 {[%clk 0:00:04.3]} 80.
Kc5 {[%clk 0:00:10.7]} 80... Bg2 {[%clk 0:00:05.2]} 81. Kd6 {[%clk 0:00:11]}
81... Bf1 {[%clk 0:00:05.4]} 82. Kd7 {[%clk 0:00:10.7]} 82... Bd3 {[%clk
0:00:04.8]} 83. Kd6 {[%clk 0:00:10.9]} 83... Bf1 {[%clk 0:00:04.7]} 84. Kc5
{[%clk 0:00:11.4]} 84... Bd3 {[%clk 0:00:04.7]} 85. Kb4 {[%clk 0:00:11.7]} 85...
Be4 {[%clk 0:00:05.1]} 86. Kc3 {[%clk 0:00:12.2]} 86... Bb7 {[%clk 0:00:05.6]}
87. Kd2 {[%clk 0:00:12.7]} 87... Ba6 {[%clk 0:00:05.9]} 88. Ke3 {[%clk
0:00:13.2]} 88... Bb7 {[%clk 0:00:06.4]} 89. Nf3 {[%clk 0:00:13.4]} 89... Kf5
{[%clk 0:00:06.6]} 90. Ne5 {[%clk 0:00:12.9]} 90... Ba6 {[%clk 0:00:06.2]} 91.
Nc6 {[%clk 0:00:12.3]} 91... Bb7 {[%clk 0:00:05.5]} 92. Ne7+ {[%clk 0:00:10.4]}
92... Kf6 {[%clk 0:00:05.8]} 93. Ng8+ {[%clk 0:00:09.8]} 93... Kf7 {[%clk
0:00:06.1]} 94. Nh6+ {[%clk 0:00:07.8]} 94... Kg7 {[%clk 0:00:04.8]} 95. f5
{[%clk 0:00:08.1]} 95... Kxh6 {[%clk 0:00:05.2]} 96. f6 {[%clk 0:00:06.3]} 96...
Kh7 {[%clk 0:00:04.9]} 97. Kf4 {[%clk 0:00:06.8]} 97... Kg8 {[%clk 0:00:05.2]}
98. g4 {[%clk 0:00:07.4]} 98... Kf7 {[%clk 0:00:05.3]} 99. g5 {[%clk 0:00:06.4]}
99... Ke6 {[%clk 0:00:05.6]} 100. Ke3 {[%clk 0:00:06.4]} 100... Kf7 {[%clk
0:00:03.3]} 101. Kd4 {[%clk 0:00:06.3]} 101... Bc8 {[%clk 0:00:03.9]} 102. Kc5
{[%clk 0:00:06.2]} 102... Be6 {[%clk 0:00:04.2]} 103. Kd6 {[%clk 0:00:06.5]}
103... Ba2 {[%clk 0:00:04.3]} 104. Kc7 {[%clk 0:00:06.7]} 104... Bb3 {[%clk
0:00:04.6]} 105. Kd6 {[%clk 0:00:06.9]} 105... Ke8 {[%clk 0:00:05]} 106. Ke5
{[%clk 0:00:06.8]} 106... Kd7 {[%clk 0:00:04.9]} 107. Kd4 {[%clk 0:00:07.3]}
107... Kd6 {[%clk 0:00:05.3]} 108. Ke4 {[%clk 0:00:07.4]} 108... Bf7 {[%clk
0:00:06.2]} 109. Kd4 {[%clk 0:00:07.5]} 109... Ke6 {[%clk 0:00:06.9]} 110. Ke4
{[%clk 0:00:07.6]} 110... Be8 {[%clk 0:00:07.4]} 111. Kd4 {[%clk 0:00:07.9]}
111... Bd7 {[%clk 0:00:08]} 112. Ke4 {[%clk 0:00:07.9]} 112... Kd6 {[%clk
0:00:07.8]} 113. Kd4 {[%clk 0:00:08.1]} 113... Bc6 {[%clk 0:00:08.2]} 114. Kc4
{[%clk 0:00:08]} 114... Bd5+ {[%clk 0:00:08.8]} 115. Kd4 {[%clk 0:00:08.3]}
115... Be6 {[%clk 0:00:09.4]} 116. Ke4 {[%clk 0:00:08.6]} 116... Bf7 {[%clk
0:00:10]} 117. Kd4 {[%clk 0:00:08.9]} 117... Kc6 {[%clk 0:00:10.5]} 118. Ke5
{[%clk 0:00:09.2]} 118... Kc5 {[%clk 0:00:11]} 119. Ke4 {[%clk 0:00:09.2]}
119... Kd6 {[%clk 0:00:11.5]} 1/2-1/2

[Event "*** Titled Tuesday Blitz"]
[Site "Chess.com"]
[Date "2020.04.07"]
[Round "2"]
[White "mbojan"]
[Black "Sunnika"]
[Result "0-1"]
[WhiteElo "2689"]
[BlackElo "2361"]
[TimeControl "180+1"]
[EndTime "13:13:15 PDT"]
[Termination "Sunnika won by resignation"]

1. e4 {[%clk 0:03:00.9]} 1... Nf6 {[%clk 0:03:00.9]} 2. d3 {[%clk 0:03:00]} 2...
d5 {[%clk 0:03:00.3]} 3. Nd2 {[%clk 0:03:00.5]} 3... e5 {[%clk 0:03:00]} 4. g3
{[%clk 0:02:58.6]} 4... Nc6 {[%clk 0:02:59.4]} 5. Bg2 {[%clk 0:02:58.9]} 5... g6
{[%clk 0:02:58.9]} 6. Ngf3 {[%clk 0:02:59.2]} 6... Bg7 {[%clk 0:02:58.6]} 7. O-O
{[%clk 0:02:59.5]} 7... O-O {[%clk 0:02:58]} 8. c3 {[%clk 0:02:59.4]} 8... a5
{[%clk 0:02:58.1]} 9. a4 {[%clk 0:02:59.5]} 9... h6 {[%clk 0:02:57.2]} 10. Re1
{[%clk 0:02:59.2]} 10... Re8 {[%clk 0:02:56.6]} 11. h3 {[%clk 0:02:59.1]} 11...
Be6 {[%clk 0:02:52.6]} 12. exd5 {[%clk 0:02:56.8]} 12... Bxd5 {[%clk 0:02:49.1]}
13. Nc4 {[%clk 0:02:57]} 13... e4 {[%clk 0:02:47.8]} 14. Nh2 {[%clk 0:02:42.1]}
14... exd3 {[%clk 0:02:44.8]} 15. Qxd3 {[%clk 0:02:40.6]} 15... Rxe1+ {[%clk
0:02:41.1]} 0-1

[Event "*** Titled Tuesday Blitz"]
[Site "Chess.com"]
[Date "2020.04.07"]
[Round "2"]
[White "GuerrieroFromLevant"]
[Black "lilleper1"]
[Result "0-1"]
[WhiteElo "2306"]
[BlackElo "2668"]
[TimeControl "180+1"]
[EndTime "13:13:21 PDT"]
[Termination "lilleper1 won by resignation"]

1. e4 {[%clk 0:03:00.9]} 1... c5 {[%clk 0:02:59.3]} 2. Nf3 {[%clk 0:03:00.2]}
2... d6 {[%clk 0:02:59.4]} 3. Bb5+ {[%clk 0:03:00.1]} 3... Bd7 {[%clk
0:02:58.8]} 4. Bxd7+ {[%clk 0:02:59.8]} 4... Nxd7 {[%clk 0:02:59.7]} 5. Qe2
{[%clk 0:02:59.5]} 5... Ngf6 {[%clk 0:02:59.7]} 6. O-O {[%clk 0:02:59.1]} 6...
e6 {[%clk 0:03:00]} 7. c4 {[%clk 0:02:59.3]} 7... Rc8 {[%clk 0:02:58.3]} 8. b3
{[%clk 0:02:58.6]} 8... g6 {[%clk 0:02:57.3]} 9. Bb2 {[%clk 0:02:57.9]} 9... Bg7
{[%clk 0:02:57.4]} 10. d4 {[%clk 0:02:57.8]} 10... cxd4 {[%clk 0:02:56.9]} 11.
Bxd4 {[%clk 0:02:56.6]} 11... a6 {[%clk 0:02:55.2]} 12. Nc3 {[%clk 0:02:48.2]}
12... O-O {[%clk 0:02:55.1]} 13. Rfd1 {[%clk 0:02:47.3]} 13... Qa5 {[%clk
0:02:54.8]} 14. h3 {[%clk 0:02:39.9]} 14... e5 {[%clk 0:02:47.4]} 15. b4 {[%clk
0:02:37.3]} 15... Qxb4 {[%clk 0:02:42.7]} 0-1

[Event "*** Titled Tuesday Blitz"]
[Site "Chess.com"]
[Date "2020.04.07"]
[Round "2"]
[White "SlavenPastar"]
[Black "Raja3401"]
[Result "1-0"]
[WhiteElo "2514"]
[BlackElo "2720"]
[TimeControl "180+1"]
[EndTime "13:14:24 PDT"]
[Termination "SlavenPastar won by resignation"]

1. d4 {[%clk 0:03:00.9]} 1... Nf6 {[%clk 0:03:00]} 2. c4 {[%clk 0:03:01.2]} 2...
e6 {[%clk 0:03:00.4]} 3. Nc3 {[%clk 0:03:01.5]} 3... Bb4 {[%clk 0:03:00.5]} 4.
e3 {[%clk 0:03:01]} 4... O-O {[%clk 0:02:58.5]} 5. Bd3 {[%clk 0:03:01.5]} 5...
d5 {[%clk 0:02:57.3]} 6. cxd5 {[%clk 0:03:01.4]} 6... exd5 {[%clk 0:02:57.1]} 7.
Ne2 {[%clk 0:03:01.9]} 7... Bd6 {[%clk 0:02:52.8]} 8. f3 {[%clk 0:02:58.9]} 8...
Re8 {[%clk 0:02:53]} 9. O-O {[%clk 0:02:59]} 9... a6 {[%clk 0:02:46.6]} 10. Qe1
{[%clk 0:02:58.3]} 10... c5 {[%clk 0:02:46.8]} 11. Qf2 {[%clk 0:02:56.1]} 11...
Nc6 {[%clk 0:02:46.7]} 12. Bd2 {[%clk 0:02:54.5]} 12... b5 {[%clk 0:02:45.8]}
13. Rac1 {[%clk 0:02:51.4]} 13... Qb6 {[%clk 0:02:45.3]} 14. a3 {[%clk
0:02:37.3]} 14... Bd7 {[%clk 0:02:31.4]} 15. Qh4 {[%clk 0:02:32.5]} 15... Re7
{[%clk 0:02:16.4]} 16. Nxd5 {[%clk 0:02:22.1]} 1-0

[Event "*** Titled Tuesday Blitz"]
[Site "Chess.com"]
[Date "2020.04.07"]
[Round "2"]
[White "cukin84"]
[Black "Konavets"]
[Result "0-1"]
[WhiteElo "2109"]
[BlackElo "3017"]
[TimeControl "180+1"]
[EndTime "13:15:46 PDT"]
[Termination "Konavets won by resignation"]

1. e4 {[%clk 0:03:00.9]} 1... c5 {[%clk 0:02:59.3]} 2. Nc3 {[%clk 0:03:00.2]}
2... Nc6 {[%clk 0:02:59.7]} 3. Bb5 {[%clk 0:02:59.4]} 3... g6 {[%clk 0:03:00.3]}
4. Bxc6 {[%clk 0:02:59.4]} 4... bxc6 {[%clk 0:03:01.2]} 5. d3 {[%clk 0:02:59.6]}
5... Bg7 {[%clk 0:03:01.5]} 6. f4 {[%clk 0:02:59.8]} 6... d6 {[%clk 0:03:01.8]}
7. Nf3 {[%clk 0:02:59.9]} 7... Nf6 {[%clk 0:03:01.1]} 8. O-O {[%clk 0:02:59.9]}
8... O-O {[%clk 0:03:01.8]} 9. Qe1 {[%clk 0:02:58.1]} 9... Ba6 {[%clk
0:03:02.3]} 10. b3 {[%clk 0:02:56.8]} 10... Qa5 {[%clk 0:02:58.8]} 11. Bd2
{[%clk 0:02:56]} 11... Qc7 {[%clk 0:02:58.3]} 12. Rd1 {[%clk 0:02:53.9]} 12...
d5 {[%clk 0:02:58.5]} 13. e5 {[%clk 0:02:53.6]} 13... Nd7 {[%clk 0:02:58.7]} 14.
Na4 {[%clk 0:02:49.4]} 14... c4 {[%clk 0:02:57.1]} 15. dxc4 {[%clk 0:02:34.1]}
15... dxc4 {[%clk 0:02:58]} 16. Ba5 {[%clk 0:02:32.7]} 16... Nb6 {[%clk
0:02:58]} 17. Nc5 {[%clk 0:02:31.3]} 17... Qc8 {[%clk 0:02:57.9]} 18. Nxa6
{[%clk 0:02:28]} 18... Qxa6 {[%clk 0:02:57.1]} 19. Kh1 {[%clk 0:02:28.1]} 19...
Nd5 {[%clk 0:02:55.9]} 20. Nd4 {[%clk 0:02:21.5]} 20... e6 {[%clk 0:02:51]} 21.
Bb4 {[%clk 0:02:08.5]} 21... Rfd8 {[%clk 0:02:25.5]} 22. a4 {[%clk 0:02:05.7]}
22... cxb3 {[%clk 0:02:14.9]} 23. cxb3 {[%clk 0:02:04.3]} 23... Nxb4 {[%clk
0:02:12.5]} 24. Qxb4 {[%clk 0:02:03.7]} 24... Rd5 {[%clk 0:02:12.6]} 25. Qc3
{[%clk 0:01:58.1]} 25... Rad8 {[%clk 0:02:11.5]} 26. Qa1 {[%clk 0:01:47.7]}
26... Rxd4 {[%clk 0:02:10.4]} 27. Rxd4 {[%clk 0:01:41.9]} 27... Rxd4 {[%clk
0:02:11.3]} 28. Rc1 {[%clk 0:01:38.6]} 28... Rxf4 {[%clk 0:02:09.5]} 29. h3
{[%clk 0:01:33.5]} 29... Qe2 {[%clk 0:02:08.2]} 30. Rxc6 {[%clk 0:01:20.8]}
30... Rf1+ {[%clk 0:02:07.2]} 0-1

[Event "*** Titled Tuesday Blitz"]
[Site "Chess.com"]
[Date "2020.04.07"]
[Round "2"]
[White "francyIM"]
[Black "Bad4life"]
[Result "1-0"]
[WhiteElo "2680"]
[BlackElo "2323"]
[TimeControl "180+1"]
[EndTime "13:15:57 PDT"]
[Termination "francyIM won by resignation"]

1. d4 {[%clk 0:03:00.9]} 1... d5 {[%clk 0:02:56.7]} 2. c4 {[%clk 0:03:00.9]}
2... e6 {[%clk 0:02:56.9]} 3. Nc3 {[%clk 0:02:59]} 3... Bb4 {[%clk 0:02:56.9]}
4. Nf3 {[%clk 0:02:57.2]} 4... Nf6 {[%clk 0:02:56.9]} 5. e3 {[%clk 0:02:57]}
5... O-O {[%clk 0:02:56.8]} 6. Bd2 {[%clk 0:02:57]} 6... Nc6 {[%clk 0:02:51.9]}
7. a3 {[%clk 0:02:56]} 7... Bd6 {[%clk 0:02:50.2]} 8. c5 {[%clk 0:02:52.5]} 8...
Be7 {[%clk 0:02:49.8]} 9. b4 {[%clk 0:02:53]} 9... a6 {[%clk 0:02:47.6]} 10. Bd3
{[%clk 0:02:52.7]} 10... Re8 {[%clk 0:02:46.5]} 11. O-O {[%clk 0:02:52.6]} 11...
Bf8 {[%clk 0:02:46.4]} 12. Qe2 {[%clk 0:02:51.1]} 12... e5 {[%clk 0:02:46.5]}
13. dxe5 {[%clk 0:02:48.9]} 13... Nxe5 {[%clk 0:02:47.4]} 14. Nxe5 {[%clk
0:02:49]} 14... Rxe5 {[%clk 0:02:48]} 15. Qf3 {[%clk 0:02:38.1]} 15... c6 {[%clk
0:02:40.2]} 16. h3 {[%clk 0:02:31.3]} 16... Rh5 {[%clk 0:02:30.6]} 17. Ne2
{[%clk 0:02:27.1]} 17... Ne4 {[%clk 0:02:27.7]} 18. Bxe4 {[%clk 0:02:25]} 18...
dxe4 {[%clk 0:02:14.2]} 19. Qxh5 {[%clk 0:02:22.9]} 19... g6 {[%clk 0:02:00.6]}
20. Qe5 {[%clk 0:02:13.4]} 20... Bg7 {[%clk 0:01:44.6]} 21. Qd6 {[%clk
0:02:07.3]} 21... Qg5 {[%clk 0:01:24.4]} 22. Bc3 {[%clk 0:02:03.2]} 22... Bxh3
{[%clk 0:01:20.6]} 23. Qg3 {[%clk 0:02:01.5]} 23... Qxg3 {[%clk 0:01:09]} 24.
fxg3 {[%clk 0:02:00.6]} 24... Bg4 {[%clk 0:01:07.9]} 25. Bxg7 {[%clk 0:02:01.2]}
25... Bxe2 {[%clk 0:01:07.7]} 26. Rf2 {[%clk 0:02:01.2]} 1-0